[Event "Titled Tuesday Blitz January 31 Late 2023"]
[White "Graif, William"]
[Black "Ismagilov, Damir"]
[WhiteFideId "2609835"]
[BlackFideId "34199982"]
[WhiteElo "2304"]
[BlackElo "2156"]
[Result "0-1"]
[Round "07"]
[TimeControl "180+2"]
[Date "2023.01.31"]
[WhiteClock "0:00:02"]
[BlackClock "0:00:50"]

1. e4 {[%clk 0:03:00]}  c6 {[%clk 0:02:57]} 2. d4 {[%clk 0:03:00]}  d5 {[%clk 0:02:58]} 3. Nc3 {[%clk 0:03:00]}  dxe4 {[%clk 0:02:56]} 4. Bc4 {[%clk 0:02:59]}  g6 {[%clk 0:02:57]} 5. f3 {[%clk 0:02:50]}  Bg7 {[%clk 0:02:55]} 6. Be3 {[%clk 0:02:49]}  Nf6 {[%clk 0:02:53]} 7. Nxe4 {[%clk 0:02:38]}  O-O {[%clk 0:02:49]} 8. Qd2 {[%clk 0:02:31]}  Nbd7 {[%clk 0:02:42]} 9. O-O-O {[%clk 0:02:18]}  Nb6 {[%clk 0:02:41]} 10. Bd3 {[%clk 0:02:15]}  Be6 {[%clk 0:02:39]} 11. Kb1 {[%clk 0:01:53]}  Nc4 {[%clk 0:02:33]} 12. Bxc4 {[%clk 0:01:52]}  Bxc4 {[%clk 0:02:34]} 13. Bh6 {[%clk 0:01:47]}  Bd5 {[%clk 0:02:06]} 14. Nxf6+ {[%clk 0:01:35]}  exf6 {[%clk 0:02:07]} 15. h4 {[%clk 0:01:31]}  f5 {[%clk 0:02:02]} 16. h5 {[%clk 0:01:25]}  Qf6 {[%clk 0:02:01]} 17. Bxg7 {[%clk 0:01:15]}  Qxg7 {[%clk 0:01:59]} 18. Nh3 {[%clk 0:01:15]}  Rae8 {[%clk 0:01:56]} 19. Rh2 {[%clk 0:01:00]}  Bc4 {[%clk 0:01:46]} 20. g3 {[%clk 0:00:57]}  Bd5 {[%clk 0:01:42]} 21. Rf1 {[%clk 0:00:42]}  Rd8 {[%clk 0:01:29]} 22. Nf4 {[%clk 0:00:38]}  Bc4 {[%clk 0:01:29]} 23. Rd1 {[%clk 0:00:25]}  Rfe8 {[%clk 0:01:19]} 24. hxg6 {[%clk 0:00:17]}  fxg6 {[%clk 0:01:17]} 25. b3 {[%clk 0:00:14]}  Bd5 {[%clk 0:01:14]} 26. Nxd5 {[%clk 0:00:13]}  Rxd5 {[%clk 0:01:15]} 27. Re2 {[%clk 0:00:11]}  Rdd8 {[%clk 0:01:08]} 28. Rxe8+ {[%clk 0:00:11]}  Rxe8 {[%clk 0:01:09]} 29. c3 {[%clk 0:00:11]}  Qe7 {[%clk 0:01:07]} 30. Kc2 {[%clk 0:00:10]}  Kg7 {[%clk 0:01:05]} 31. Qd3 {[%clk 0:00:09]}  Qe2+ {[%clk 0:01:00]} 32. Qxe2 {[%clk 0:00:07]}  Rxe2+ {[%clk 0:01:00]} 33. Rd2 {[%clk 0:00:07]}  Rxd2+ {[%clk 0:00:56]} 34. Kxd2 {[%clk 0:00:08]}  g5 {[%clk 0:00:57]} 35. Ke3 {[%clk 0:00:06]}  h5 {[%clk 0:00:57]} 36. f4 {[%clk 0:00:05]}  Kf6 {[%clk 0:00:54]} 37. c4 {[%clk 0:00:03]}  g4 {[%clk 0:00:50]} 38. b4 {[%clk 0:00:02]}  Ke6 {[%clk 0:00:50]} 39. a4 {[%clk 0:00:02]}  a6 {[%clk 0:00:50]} 40. a5 {[%clk 0:00:02]}  Kd6 {[%clk 0:00:50]} 41. Kd3 {[%clk 0:00:02]}  Kc7 {[%clk 0:00:50]} 0-1


[Site "https://www.chess.com"]

[Event "Titled Tuesday Blitz January 31 Late 2023"]
[White "Kostiukov, Alexandr"]
[Black "ArchibaldCerveza29"]
[WhiteFideId "14108100"]
[WhiteElo "2271"]
[BlackElo "2532"]
[Result "0-1"]
[Round "07"]
[TimeControl "180+2"]
[Date "2023.01.31"]
[WhiteClock "0:00:01"]
[BlackClock "0:00:25"]

1. g3 {[%clk 0:03:00]}  d5 {[%clk 0:02:59]} 2. Bg2 {[%clk 0:03:00]}  Nf6 {[%clk 0:03:00]} 3. d3 {[%clk 0:03:00]}  e5 {[%clk 0:02:56]} 4. e4 {[%clk 0:03:00]}  c6 {[%clk 0:02:55]} 5. Qe2 {[%clk 0:03:00]}  Bd6 {[%clk 0:02:54]} 6. Nf3 {[%clk 0:03:00]}  O-O {[%clk 0:02:54]} 7. O-O {[%clk 0:02:59]}  h6 {[%clk 0:02:54]} 8. c4 {[%clk 0:02:56]}  Re8 {[%clk 0:02:53]} 9. cxd5 {[%clk 0:02:52]}  cxd5 {[%clk 0:02:52]} 10. exd5 {[%clk 0:02:53]}  Nxd5 {[%clk 0:02:50]} 11. Nc3 {[%clk 0:02:53]}  Be6 {[%clk 0:02:45]} 12. Ne4 {[%clk 0:02:15]}  Bf8 {[%clk 0:02:39]} 13. Nxe5 {[%clk 0:02:10]}  f5 {[%clk 0:02:38]} 14. Nc3 {[%clk 0:02:01]}  Nc6 {[%clk 0:02:22]} 15. Nxc6 {[%clk 0:01:45]}  bxc6 {[%clk 0:02:23]} 16. Nxd5 {[%clk 0:01:22]}  Bxd5 {[%clk 0:02:24]} 17. Qc2 {[%clk 0:01:14]}  Bxg2 {[%clk 0:02:04]} 18. Kxg2 {[%clk 0:01:15]}  Qd5+ {[%clk 0:02:05]} 19. Kg1 {[%clk 0:01:14]}  Rad8 {[%clk 0:02:06]} 20. Be3 {[%clk 0:01:02]}  a6 {[%clk 0:02:02]} 21. Rac1 {[%clk 0:00:57]}  Re6 {[%clk 0:01:47]} 22. Qc4 {[%clk 0:00:55]}  a5 {[%clk 0:01:41]} 23. b3 {[%clk 0:00:48]}  Kf7 {[%clk 0:01:40]} 24. Rfd1 {[%clk 0:00:41]}  Red6 {[%clk 0:01:34]} 25. d4 {[%clk 0:00:27]}  Kg6 {[%clk 0:01:29]} 26. Qxd5 {[%clk 0:00:27]}  cxd5 {[%clk 0:01:29]} 27. Rc5 {[%clk 0:00:26]}  Ra6 {[%clk 0:01:26]} 28. Rc2 {[%clk 0:00:23]}  Bb4 {[%clk 0:01:25]} 29. Rdc1 {[%clk 0:00:22]}  Rdd6 {[%clk 0:01:25]} 30. Bf4 {[%clk 0:00:22]}  Re6 {[%clk 0:01:24]} 31. Be5 {[%clk 0:00:21]}  Kh5 {[%clk 0:01:04]} 32. Bxg7 {[%clk 0:00:15]}  Kg4 {[%clk 0:01:03]} 33. Kg2 {[%clk 0:00:14]}  f4 {[%clk 0:01:01]} 34. h3+ {[%clk 0:00:12]}  Kf5 {[%clk 0:00:59]} 35. g4+ {[%clk 0:00:12]}  Ke4 {[%clk 0:00:54]} 36. Be5 {[%clk 0:00:13]}  a4 {[%clk 0:00:46]} 37. Rd1 {[%clk 0:00:08]}  f3+ {[%clk 0:00:44]} 38. Kg3 {[%clk 0:00:08]}  axb3 {[%clk 0:00:40]} 39. axb3 {[%clk 0:00:08]}  Ra3 {[%clk 0:00:37]} 40. Rb2 {[%clk 0:00:06]}  Bc3 {[%clk 0:00:35]} 41. Rbb1 {[%clk 0:00:04]}  Rb6 {[%clk 0:00:31]} 42. h4 {[%clk 0:00:03]}  Ra2 {[%clk 0:00:27]} 43. Rbc1 {[%clk 0:00:01]}  Rxb3 {[%clk 0:00:25]} 0-1


[Site "https://www.chess.com"]

[Event "Titled Tuesday Blitz January 31 Late 2023"]
[White "Ronka, Erik"]
[Black "Szente Varga, Fruzsina"]
[WhiteFideId "505080"]
[BlackFideId "712264"]
[WhiteElo "2276"]
[BlackElo "2075"]
[Result "1-0"]
[Round "07"]
[TimeControl "180+2"]
[Date "2023.01.31"]
[WhiteClock "0:00:16"]
[BlackClock "0:00:12"]

1. e4 {[%clk 0:03:00]}  Nf6 {[%clk 0:02:55]} 2. Nc3 {[%clk 0:02:59]}  d5 {[%clk 0:02:55]} 3. d4 {[%clk 0:02:55]}  Nxe4 {[%clk 0:02:44]} 4. Nxe4 {[%clk 0:02:55]}  dxe4 {[%clk 0:02:45]} 5. Bf4 {[%clk 0:02:56]}  Nc6 {[%clk 0:02:43]} 6. Bb5 {[%clk 0:02:38]}  e6 {[%clk 0:02:39]} 7. Qd2 {[%clk 0:02:24]}  Bd6 {[%clk 0:02:34]} 8. O-O-O {[%clk 0:02:19]}  O-O {[%clk 0:02:30]} 9. Kb1 {[%clk 0:02:00]}  a6 {[%clk 0:02:21]} 10. Bxc6 {[%clk 0:01:55]}  bxc6 {[%clk 0:02:22]} 11. Ne2 {[%clk 0:01:55]}  Rb8 {[%clk 0:02:21]} 12. Qe3 {[%clk 0:01:39]}  f5 {[%clk 0:02:14]} 13. f3 {[%clk 0:01:32]}  exf3 {[%clk 0:02:11]} 14. gxf3 {[%clk 0:01:33]}  Bxf4 {[%clk 0:02:10]} 15. Nxf4 {[%clk 0:01:32]}  Qd6 {[%clk 0:02:10]} 16. Ka1 {[%clk 0:01:09]}  Bd7 {[%clk 0:02:07]} 17. Nd3 {[%clk 0:01:08]}  Rb5 {[%clk 0:01:34]} 18. Nc5 {[%clk 0:01:04]}  Rfb8 {[%clk 0:01:30]} 19. b3 {[%clk 0:01:04]}  a5 {[%clk 0:01:07]} 20. a4 {[%clk 0:00:56]}  Rb4 {[%clk 0:01:06]} 21. Rhe1 {[%clk 0:00:52]}  Re8 {[%clk 0:01:03]} 22. Ka2 {[%clk 0:00:51]}  Qd5 {[%clk 0:01:00]} 23. Qe5 {[%clk 0:00:47]}  Qxe5 {[%clk 0:00:55]} 24. dxe5 {[%clk 0:00:47]}  Bc8 {[%clk 0:00:55]} 25. c4 {[%clk 0:00:44]}  Kf7 {[%clk 0:00:53]} 26. f4 {[%clk 0:00:39]}  Ke7 {[%clk 0:00:51]} 27. Rg1 {[%clk 0:00:38]}  g6 {[%clk 0:00:50]} 28. h4 {[%clk 0:00:38]}  Rb8 {[%clk 0:00:42]} 29. Kb2 {[%clk 0:00:36]}  Kf7 {[%clk 0:00:26]} 30. Kc3 {[%clk 0:00:36]}  Ke7 {[%clk 0:00:26]} 31. Rd2 {[%clk 0:00:31]}  Kf7 {[%clk 0:00:20]} 32. Rh2 {[%clk 0:00:23]}  h5 {[%clk 0:00:17]} 33. Rhg2 {[%clk 0:00:23]}  Rg8 {[%clk 0:00:17]} 34. Rg3 {[%clk 0:00:23]}  Rg7 {[%clk 0:00:16]} 35. Rd3 {[%clk 0:00:20]}  Ke7 {[%clk 0:00:16]} 36. Rgd1 {[%clk 0:00:20]}  Rg8 {[%clk 0:00:16]} 37. Rd4 {[%clk 0:00:20]}  Rf8 {[%clk 0:00:15]} 38. Rg1 {[%clk 0:00:20]}  Rg8 {[%clk 0:00:16]} 39. Nd3 {[%clk 0:00:20]}  Bd7 {[%clk 0:00:14]} 40. c5 {[%clk 0:00:16]}  Be8 {[%clk 0:00:14]} 41. Nb2 {[%clk 0:00:16]}  Bf7 {[%clk 0:00:14]} 42. Nc4 {[%clk 0:00:16]}  Ra8 {[%clk 0:00:14]} 43. Rgd1 {[%clk 0:00:16]}  Rgb8 {[%clk 0:00:13]} 44. Rd7+ {[%clk 0:00:16]}  Ke8 {[%clk 0:00:13]} 45. Rxc7 {[%clk 0:00:16]}  Rd8 {[%clk 0:00:12]} 46. Nd6+ {[%clk 0:00:16]} 1-0


[Site "https://www.chess.com"]

[Event "Titled Tuesday Blitz January 31 Late 2023"]
[White "Bulgurlu, Okan"]
[Black "Gurevich, Dmitry"]
[WhiteFideId "6352316"]
[BlackFideId "2000407"]
[WhiteElo "1908"]
[BlackElo "2393"]
[Result "0-1"]
[Round "07"]
[TimeControl "180+2"]
[Date "2023.01.31"]
[WhiteClock "0:00:04"]
[BlackClock "0:00:12"]

1. Nf3 {[%clk 0:02:59]}  Nf6 {[%clk 0:02:59]} 2. g3 {[%clk 0:02:58]}  g6 {[%clk 0:02:57]} 3. Bg2 {[%clk 0:02:59]}  Bg7 {[%clk 0:02:57]} 4. a3 {[%clk 0:02:59]}  O-O {[%clk 0:02:57]} 5. O-O {[%clk 0:02:59]}  d5 {[%clk 0:02:55]} 6. d4 {[%clk 0:02:57]}  a5 {[%clk 0:02:52]} 7. Nbd2 {[%clk 0:02:57]}  b6 {[%clk 0:02:50]} 8. c4 {[%clk 0:02:57]}  Bb7 {[%clk 0:02:47]} 9. Ne5 {[%clk 0:02:58]}  Nbd7 {[%clk 0:02:45]} 10. Ndf3 {[%clk 0:02:57]}  e6 {[%clk 0:02:41]} 11. Qc2 {[%clk 0:02:56]}  c5 {[%clk 0:02:28]} 12. Be3 {[%clk 0:02:07]}  cxd4 {[%clk 0:02:16]} 13. Bxd4 {[%clk 0:02:08]}  dxc4 {[%clk 0:02:03]} 14. Nxc4 {[%clk 0:01:55]}  Rc8 {[%clk 0:01:57]} 15. Qb3 {[%clk 0:01:51]}  Bd5 {[%clk 0:01:51]} 16. Nfd2 {[%clk 0:01:44]}  Nc5 {[%clk 0:01:36]} 17. Bxc5 {[%clk 0:01:33]}  Rxc5 {[%clk 0:01:34]} 18. e4 {[%clk 0:01:12]}  Bxc4 {[%clk 0:01:12]} 19. Nxc4 {[%clk 0:01:13]}  b5 {[%clk 0:01:12]} 20. Ne3 {[%clk 0:01:09]}  Qb6 {[%clk 0:01:08]} 21. Rac1 {[%clk 0:01:03]}  Rfc8 {[%clk 0:01:07]} 22. Rxc5 {[%clk 0:01:02]}  Qxc5 {[%clk 0:01:06]} 23. Rd1 {[%clk 0:01:03]}  h5 {[%clk 0:00:57]} 24. h4 {[%clk 0:01:01]}  a4 {[%clk 0:00:54]} 25. Qd3 {[%clk 0:00:54]}  Ng4 {[%clk 0:00:49]} 26. Nxg4 {[%clk 0:00:41]}  hxg4 {[%clk 0:00:49]} 27. Bf1 {[%clk 0:00:22]}  b4 {[%clk 0:00:33]} 28. axb4 {[%clk 0:00:18]}  Qxb4 {[%clk 0:00:33]} 29. Qa3 {[%clk 0:00:18]}  Rb8 {[%clk 0:00:29]} 30. Qxb4 {[%clk 0:00:15]}  Rxb4 {[%clk 0:00:29]} 31. Rd8+ {[%clk 0:00:12]}  Kh7 {[%clk 0:00:28]} 32. Rd7 {[%clk 0:00:12]}  f5 {[%clk 0:00:27]} 33. exf5 {[%clk 0:00:09]}  exf5 {[%clk 0:00:28]} 34. Ra7 {[%clk 0:00:08]}  Kh6 {[%clk 0:00:25]} 35. Bd3 {[%clk 0:00:09]}  Bxb2 {[%clk 0:00:23]} 36. h5 {[%clk 0:00:08]}  Bd4 {[%clk 0:00:14]} 37. hxg6 {[%clk 0:00:05]}  Bxa7 {[%clk 0:00:13]} 38. Bxf5 {[%clk 0:00:04]}  Kg7 {[%clk 0:00:12]} 0-1


[Site "https://www.chess.com"]

[Event "Titled Tuesday Blitz January 31 Late 2023"]
[White "Slater-Jones, Henry"]
[Black "Lucassen, Mickey"]
[WhiteFideId "3222101"]
[BlackFideId "12919110"]
[WhiteElo "1826"]
[BlackElo "2023"]
[Result "0-1"]
[Round "07"]
[TimeControl "180+2"]
[Date "2023.01.31"]
[WhiteClock "0:01:29"]
[BlackClock "0:02:16"]

1. d4 {[%clk 0:03:00]}  Nf6 {[%clk 0:02:59]} 2. c4 {[%clk 0:03:00]}  g6 {[%clk 0:03:00]} 3. Nc3 {[%clk 0:03:00]}  d5 {[%clk 0:03:01]} 4. cxd5 {[%clk 0:02:58]}  Nxd5 {[%clk 0:03:02]} 5. e4 {[%clk 0:02:58]}  Nxc3 {[%clk 0:03:02]} 6. bxc3 {[%clk 0:02:59]}  Bg7 {[%clk 0:03:03]} 7. Bc4 {[%clk 0:03:00]}  c5 {[%clk 0:03:02]} 8. Ne2 {[%clk 0:03:00]}  Nc6 {[%clk 0:03:03]} 9. Be3 {[%clk 0:03:00]}  O-O {[%clk 0:03:03]} 10. O-O {[%clk 0:02:59]}  b6 {[%clk 0:03:03]} 11. dxc5 {[%clk 0:02:40]}  Qc7 {[%clk 0:03:01]} 12. cxb6 {[%clk 0:02:38]}  axb6 {[%clk 0:03:01]} 13. Rb1 {[%clk 0:02:32]}  Na5 {[%clk 0:03:00]} 14. Bd5 {[%clk 0:02:29]}  Rb8 {[%clk 0:02:59]} 15. Qb3 {[%clk 0:02:28]}  Ba6 {[%clk 0:02:44]} 16. Qd1 {[%clk 0:01:59]}  e6 {[%clk 0:02:42]} 17. Bb3 {[%clk 0:01:56]}  Rfd8 {[%clk 0:02:41]} 18. Qe1 {[%clk 0:01:51]}  Bd3 {[%clk 0:02:34]} 19. Rc1 {[%clk 0:01:42]}  Bxe4 {[%clk 0:02:33]} 20. Bd4 {[%clk 0:01:39]}  Bh6 {[%clk 0:02:20]} 21. Rd1 {[%clk 0:01:36]}  Nxb3 {[%clk 0:02:19]} 22. axb3 {[%clk 0:01:35]}  Bc2 {[%clk 0:02:19]} 23. b4 {[%clk 0:01:29]}  Bxd1 {[%clk 0:02:16]} 24. Qxd1 {[%clk 0:01:29]}  e5 {[%clk 0:02:16]} 0-1


[Site "https://www.chess.com"]

[Event "Titled Tuesday Blitz January 31 Late 2023"]
[White "Antonio, Jorge Carlos"]
[Black "Omelja, Artem"]
[WhiteFideId "113190"]
[BlackFideId "14119846"]
[WhiteElo "2277"]
[BlackElo "2446"]
[Result "0-1"]
[Round "07"]
[TimeControl "180+2"]
[Date "2023.01.31"]
[WhiteClock "0:00:02"]
[BlackClock "0:00:05"]

1. d4 {[%clk 0:03:00]}  Nf6 {[%clk 0:02:56]} 2. Nf3 {[%clk 0:03:00]}  d5 {[%clk 0:02:52]} 3. Bf4 {[%clk 0:02:59]}  e6 {[%clk 0:02:47]} 4. e3 {[%clk 0:02:59]}  Bd6 {[%clk 0:02:47]} 5. Bxd6 {[%clk 0:02:56]}  Qxd6 {[%clk 0:02:38]} 6. c4 {[%clk 0:02:56]}  c6 {[%clk 0:02:38]} 7. Nc3 {[%clk 0:02:55]}  Nbd7 {[%clk 0:02:38]} 8. cxd5 {[%clk 0:02:55]}  exd5 {[%clk 0:02:39]} 9. Bd3 {[%clk 0:02:55]}  O-O {[%clk 0:02:40]} 10. O-O {[%clk 0:02:54]}  Re8 {[%clk 0:02:40]} 11. a3 {[%clk 0:02:54]}  Ne4 {[%clk 0:02:39]} 12. Nd2 {[%clk 0:02:52]}  f5 {[%clk 0:02:20]} 13. Qc2 {[%clk 0:02:50]}  Ndf6 {[%clk 0:02:12]} 14. Rae1 {[%clk 0:02:48]}  Ng4 {[%clk 0:02:01]} 15. f4 {[%clk 0:02:37]}  Nxd2 {[%clk 0:01:23]} 16. Qxd2 {[%clk 0:02:35]}  Nf6 {[%clk 0:01:23]} 17. Qf2 {[%clk 0:02:13]}  Bd7 {[%clk 0:01:13]} 18. b4 {[%clk 0:02:11]}  a5 {[%clk 0:01:10]} 19. Rb1 {[%clk 0:02:05]}  axb4 {[%clk 0:01:09]} 20. axb4 {[%clk 0:02:05]}  Ra3 {[%clk 0:01:09]} 21. Qd2 {[%clk 0:02:01]}  Rea8 {[%clk 0:01:00]} 22. Rfe1 {[%clk 0:01:51]}  Be6 {[%clk 0:00:45]} 23. Rec1 {[%clk 0:01:41]}  Ne4 {[%clk 0:00:44]} 24. Bxe4 {[%clk 0:01:32]}  dxe4 {[%clk 0:00:45]} 25. b5 {[%clk 0:01:26]}  c5 {[%clk 0:00:41]} 26. d5 {[%clk 0:01:24]}  Bf7 {[%clk 0:00:41]} 27. b6 {[%clk 0:01:23]}  Qf6 {[%clk 0:00:20]} 28. Nb5 {[%clk 0:01:16]}  Rd3 {[%clk 0:00:20]} 29. Qf2 {[%clk 0:01:08]}  Bxd5 {[%clk 0:00:11]} 30. Rxc5 {[%clk 0:01:02]}  Bc6 {[%clk 0:00:11]} 31. Nd4 {[%clk 0:00:56]}  Rd8 {[%clk 0:00:10]} 32. Rxf5 {[%clk 0:00:54]}  R3xd4 {[%clk 0:00:05]} 33. Rxf6 {[%clk 0:00:54]}  Rd1+ {[%clk 0:00:05]} 34. Qf1 {[%clk 0:00:31]}  Rxf1+ {[%clk 0:00:05]} 35. Kxf1 {[%clk 0:00:31]}  gxf6 {[%clk 0:00:06]} 36. Ke2 {[%clk 0:00:25]}  Kf7 {[%clk 0:00:05]} 37. g4 {[%clk 0:00:24]}  Rd5 {[%clk 0:00:05]} 38. h4 {[%clk 0:00:22]}  Rb5 {[%clk 0:00:05]} 39. Rd1 {[%clk 0:00:15]}  Rb2+ {[%clk 0:00:04]} 40. Kf1 {[%clk 0:00:13]}  Rxb6 {[%clk 0:00:04]} 41. Rd4 {[%clk 0:00:11]}  Rb2 {[%clk 0:00:03]} 42. g5 {[%clk 0:00:11]}  fxg5 {[%clk 0:00:03]} 43. hxg5 {[%clk 0:00:11]}  Kg6 {[%clk 0:00:04]} 44. Rd6+ {[%clk 0:00:11]}  Kh5 {[%clk 0:00:04]} 45. Rh6+ {[%clk 0:00:10]}  Kg4 {[%clk 0:00:05]} 46. Rxh7 {[%clk 0:00:10]}  Bb5+ {[%clk 0:00:03]} 47. Ke1 {[%clk 0:00:09]}  Re2+ {[%clk 0:00:03]} 48. Kd1 {[%clk 0:00:09]}  Rxe3 {[%clk 0:00:03]} 49. Rf7 {[%clk 0:00:07]}  Rg3 {[%clk 0:00:03]} 50. g6 {[%clk 0:00:07]}  Kf3 {[%clk 0:00:03]} 51. g7 {[%clk 0:00:07]}  e3 {[%clk 0:00:04]} 52. f5 {[%clk 0:00:07]}  Rg1+ {[%clk 0:00:04]} 53. Kc2 {[%clk 0:00:07]}  e2 {[%clk 0:00:05]} 54. Re7 {[%clk 0:00:06]}  Rxg7 {[%clk 0:00:05]} 55. f6 {[%clk 0:00:03]}  Rxe7 {[%clk 0:00:04]} 56. fxe7 {[%clk 0:00:02]}  e1=Q {[%clk 0:00:05]} 0-1


[Site "https://www.chess.com"]

[Event "Titled Tuesday Blitz January 31 Late 2023"]
[White "Bon, Michael"]
[Black "Kavutskiy, Konstantin"]
[WhiteFideId "620696"]
[BlackFideId "2026384"]
[WhiteElo "2394"]
[BlackElo "2414"]
[Result "1/2-1/2"]
[Round "07"]
[TimeControl "180+2"]
[Date "2023.01.31"]
[WhiteClock "0:00:11"]
[BlackClock "0:00:05"]

1. e4 {[%clk 0:03:00]}  Nc6 {[%clk 0:02:59]} 2. d4 {[%clk 0:02:59]}  d6 {[%clk 0:02:59]} 3. d5 {[%clk 0:02:57]}  Nb8 {[%clk 0:02:59]} 4. f4 {[%clk 0:02:57]}  c6 {[%clk 0:02:52]} 5. c4 {[%clk 0:02:57]}  Nf6 {[%clk 0:02:48]} 6. Bd3 {[%clk 0:02:57]}  g6 {[%clk 0:02:47]} 7. Nf3 {[%clk 0:02:48]}  cxd5 {[%clk 0:02:46]} 8. exd5 {[%clk 0:02:36]}  Bg7 {[%clk 0:02:38]} 9. O-O {[%clk 0:02:36]}  O-O {[%clk 0:02:32]} 10. Nc3 {[%clk 0:02:36]}  Nbd7 {[%clk 0:02:29]} 11. Qe2 {[%clk 0:02:32]}  Nc5 {[%clk 0:02:28]} 12. Bc2 {[%clk 0:02:32]}  e6 {[%clk 0:02:18]} 13. dxe6 {[%clk 0:02:22]}  Bxe6 {[%clk 0:02:16]} 14. Be3 {[%clk 0:02:10]}  Re8 {[%clk 0:02:15]} 15. Rad1 {[%clk 0:02:01]}  Bxc4 {[%clk 0:02:02]} 16. Qxc4 {[%clk 0:02:01]}  Rxe3 {[%clk 0:02:02]} 17. Nb5 {[%clk 0:02:00]}  Nfe4 {[%clk 0:01:41]} 18. Nxd6 {[%clk 0:01:41]}  Qe7 {[%clk 0:01:31]} 19. Ne5 {[%clk 0:01:11]}  Nxd6 {[%clk 0:01:02]} 20. Qxc5 {[%clk 0:01:09]}  Nf5 {[%clk 0:01:02]} 21. Qxe7 {[%clk 0:01:01]}  Nxe7 {[%clk 0:01:03]} 22. Rd7 {[%clk 0:01:01]}  Bxe5 {[%clk 0:01:00]} 23. fxe5 {[%clk 0:01:01]}  Rxe5 {[%clk 0:01:00]} 24. Bb3 {[%clk 0:01:01]}  Rf8 {[%clk 0:00:57]} 25. Rxb7 {[%clk 0:01:01]}  a5 {[%clk 0:00:56]} 26. h3 {[%clk 0:00:57]}  Nf5 {[%clk 0:00:51]} 27. Rd1 {[%clk 0:00:53]}  h5 {[%clk 0:00:38]} 28. Rdd7 {[%clk 0:00:52]}  Nh6 {[%clk 0:00:39]} 29. a4 {[%clk 0:00:42]}  Rf5 {[%clk 0:00:39]} 30. Rd5 {[%clk 0:00:39]}  Rf6 {[%clk 0:00:33]} 31. Rxa5 {[%clk 0:00:37]}  Re8 {[%clk 0:00:34]} 32. Raa7 {[%clk 0:00:26]}  Re1+ {[%clk 0:00:34]} 33. Kh2 {[%clk 0:00:26]}  Re2 {[%clk 0:00:35]} 34. Bd5 {[%clk 0:00:22]}  Rd2 {[%clk 0:00:31]} 35. Be4 {[%clk 0:00:14]}  g5 {[%clk 0:00:24]} 36. a5 {[%clk 0:00:12]}  g4 {[%clk 0:00:25]} 37. hxg4 {[%clk 0:00:12]}  Nxg4+ {[%clk 0:00:23]} 38. Kg3 {[%clk 0:00:12]}  Re2 {[%clk 0:00:20]} 39. Bf3 {[%clk 0:00:12]}  Re3 {[%clk 0:00:18]} 40. Rb6 {[%clk 0:00:12]}  Rf5 {[%clk 0:00:14]} 41. a6 {[%clk 0:00:08]}  Ne5 {[%clk 0:00:14]} 42. Rh6 {[%clk 0:00:07]}  Kg7 {[%clk 0:00:12]} 43. Rd6 {[%clk 0:00:04]}  Nxf3 {[%clk 0:00:11]} 44. gxf3 {[%clk 0:00:05]}  Rexf3+ {[%clk 0:00:09]} 45. Kg2 {[%clk 0:00:05]}  h4 {[%clk 0:00:07]} 46. Rd2 {[%clk 0:00:02]}  h3+ {[%clk 0:00:07]} 47. Kh2 {[%clk 0:00:02]}  Ra5 {[%clk 0:00:03]} 48. Ra8 {[%clk 0:00:02]}  Rf6 {[%clk 0:00:04]} 49. a7 {[%clk 0:00:02]}  Rfa6 {[%clk 0:00:05]} 50. Rd7 {[%clk 0:00:02]}  Kg6 {[%clk 0:00:04]} 51. Kxh3 {[%clk 0:00:02]}  Kg5 {[%clk 0:00:04]} 52. Rg8+ {[%clk 0:00:03]}  Kf6 {[%clk 0:00:04]} 53. a8=Q {[%clk 0:00:03]}  Rxa8 {[%clk 0:00:04]} 54. Rxa8 {[%clk 0:00:04]}  Rxa8 {[%clk 0:00:04]} 55. Rd2 {[%clk 0:00:04]}  Kg5 {[%clk 0:00:04]} 56. Kg3 {[%clk 0:00:05]}  Rb8 {[%clk 0:00:03]} 57. Rd5+ {[%clk 0:00:05]}  f5 {[%clk 0:00:03]} 58. Rd2 {[%clk 0:00:05]}  Rb3+ {[%clk 0:00:03]} 59. Kf2 {[%clk 0:00:06]}  Kf4 {[%clk 0:00:04]} 60. Rc2 {[%clk 0:00:06]}  Ke4 {[%clk 0:00:04]} 61. Rc4+ {[%clk 0:00:06]}  Kd3 {[%clk 0:00:04]} 62. Rc3+ {[%clk 0:00:07]}  Rxc3 {[%clk 0:00:04]} 63. bxc3 {[%clk 0:00:08]}  Kxc3 {[%clk 0:00:03]} 64. Kf3 {[%clk 0:00:09]}  Kd4 {[%clk 0:00:04]} 65. Kf4 {[%clk 0:00:10]}  Kd5 {[%clk 0:00:05]} 66. Kxf5 {[%clk 0:00:11]} 1/2-1/2


[Site "https://www.chess.com"]

[Event "Titled Tuesday Blitz January 31 Late 2023"]
[White "Pein, Jonathan"]
[Black "Gonzalez, Francisco Silva"]
[WhiteFideId "417092"]
[BlackFideId "1512285"]
[WhiteElo "2265"]
[BlackElo "2021"]
[Result "1-0"]
[Round "07"]
[TimeControl "180+2"]
[Date "2023.01.31"]
[WhiteClock "0:00:54"]
[BlackClock "0:00:54"]

1. g3 {[%clk 0:03:00]}  d5 {[%clk 0:02:52]} 2. Bg2 {[%clk 0:03:00]}  b5 {[%clk 0:02:51]} 3. a4 {[%clk 0:02:59]}  b4 {[%clk 0:02:51]} 4. Nf3 {[%clk 0:02:58]}  Bb7 {[%clk 0:02:49]} 5. O-O {[%clk 0:02:58]}  e6 {[%clk 0:02:49]} 6. c3 {[%clk 0:02:56]}  a5 {[%clk 0:02:48]} 7. d3 {[%clk 0:02:54]}  Nf6 {[%clk 0:02:47]} 8. Re1 {[%clk 0:02:54]}  Be7 {[%clk 0:02:46]} 9. Nbd2 {[%clk 0:02:54]}  Nbd7 {[%clk 0:02:43]} 10. e4 {[%clk 0:02:50]}  dxe4 {[%clk 0:02:43]} 11. dxe4 {[%clk 0:02:51]}  c5 {[%clk 0:02:43]} 12. e5 {[%clk 0:02:47]}  Nd5 {[%clk 0:02:35]} 13. c4 {[%clk 0:02:47]}  N5b6 {[%clk 0:02:33]} 14. b3 {[%clk 0:02:47]}  Qc7 {[%clk 0:02:33]} 15. Ne4 {[%clk 0:02:44]}  Nxe5 {[%clk 0:02:27]} 16. Nxe5 {[%clk 0:02:26]}  Qxe5 {[%clk 0:02:26]} 17. Bf4 {[%clk 0:02:27]}  Qf5 {[%clk 0:02:10]} 18. Nd6+ {[%clk 0:02:13]}  Bxd6 {[%clk 0:02:10]} 19. Qxd6 {[%clk 0:02:05]}  Bxg2 {[%clk 0:02:06]} 20. Kxg2 {[%clk 0:02:04]}  Nd7 {[%clk 0:01:58]} 21. Rad1 {[%clk 0:01:58]}  Rd8 {[%clk 0:01:57]} 22. Re5 {[%clk 0:01:46]}  Qf6 {[%clk 0:01:54]} 23. Bg5 {[%clk 0:01:27]}  Qf3+ {[%clk 0:01:21]} 24. Kxf3 {[%clk 0:01:15]}  Nxe5+ {[%clk 0:01:21]} 25. Qxe5 {[%clk 0:01:15]}  Rxd1 {[%clk 0:01:22]} 26. Qb8+ {[%clk 0:01:15]}  Kd7 {[%clk 0:01:22]} 27. Qxh8 {[%clk 0:01:13]}  Rd3+ {[%clk 0:01:21]} 28. Be3 {[%clk 0:01:11]}  Rxb3 {[%clk 0:01:18]} 29. Qxg7 {[%clk 0:01:11]}  Ke7 {[%clk 0:01:16]} 30. Qg5+ {[%clk 0:01:11]}  Ke8 {[%clk 0:01:15]} 31. Qxc5 {[%clk 0:01:10]}  Ra3 {[%clk 0:01:14]} 32. Qxa5 {[%clk 0:01:08]}  b3 {[%clk 0:01:14]} 33. Qb5+ {[%clk 0:01:08]}  Kd8 {[%clk 0:01:13]} 34. a5 {[%clk 0:01:09]}  Kc8 {[%clk 0:01:08]} 35. a6 {[%clk 0:01:07]}  b2 {[%clk 0:01:07]} 36. a7 {[%clk 0:01:05]}  Ra2 {[%clk 0:01:00]} 37. Qc6+ {[%clk 0:00:54]}  Kd8 {[%clk 0:00:56]} 38. Bg5+ {[%clk 0:00:53]}  f6 {[%clk 0:00:54]} 39. Bxf6# {[%clk 0:00:54]} 1-0


[Site "https://www.chess.com"]